[Event "Titled Tuesday Blitz October 31 Early 2023"]
[White "Liyanage, Ranindu Dilshan"]
[Black "Toropov, Pavel"]
[WhiteFideId "9915834"]
[BlackFideId "24129178"]
[WhiteElo "2773"]
[BlackElo "2541"]
[Result "1-0"]
[Round "2"]
[TimeControl "180+1"]
[Date "2023.10.31"]
[WhiteClock "0:00:51"]
[BlackClock "0:00:04"]
[Board "53"]

1. e4 {[%clk 0:02:59]}  e6 {[%clk 0:02:59]} 2. d4 {[%clk 0:02:59]}  d5 {[%clk 0:02:59]} 3. Nc3 {[%clk 0:02:59]}  dxe4 {[%clk 0:02:59]} 4. Nxe4 {[%clk 0:02:59]}  Nd7 {[%clk 0:02:59]} 5. Nf3 {[%clk 0:02:58]}  Ngf6 {[%clk 0:02:58]} 6. Nxf6+ {[%clk 0:02:58]}  Nxf6 {[%clk 0:02:58]} 7. g3 {[%clk 0:02:57]}  b6 {[%clk 0:02:58]} 8. Bg2 {[%clk 0:02:57]}  Bb7 {[%clk 0:02:58]} 9. O-O {[%clk 0:02:58]}  Bd6 {[%clk 0:02:53]} 10. Qe2 {[%clk 0:02:57]}  O-O {[%clk 0:02:52]} 11. Rd1 {[%clk 0:02:47]}  h6 {[%clk 0:02:42]} 12. c4 {[%clk 0:02:45]}  Qe7 {[%clk 0:02:36]} 13. b3 {[%clk 0:02:46]}  Rad8 {[%clk 0:02:17]} 14. Bb2 {[%clk 0:02:45]}  Ba3 {[%clk 0:02:15]} 15. Bc3 {[%clk 0:02:41]}  Bb4 {[%clk 0:02:14]} 16. Bb2 {[%clk 0:02:41]}  Ba3 {[%clk 0:02:13]} 17. Bxa3 {[%clk 0:02:41]}  Qxa3 {[%clk 0:02:13]} 18. Ne5 {[%clk 0:02:37]}  Bxg2 {[%clk 0:01:53]} 19. Kxg2 {[%clk 0:02:38]}  c5 {[%clk 0:01:46]} 20. d5 {[%clk 0:02:28]}  exd5 {[%clk 0:01:30]} 21. Nc6 {[%clk 0:02:27]}  Rfe8 {[%clk 0:01:03]} 22. Qf3 {[%clk 0:02:27]}  Rd6 {[%clk 0:00:39]} 23. cxd5 {[%clk 0:02:26]}  Nxd5 {[%clk 0:00:35]} 24. Nxa7 {[%clk 0:02:16]}  Qxa7 {[%clk 0:00:24]} 25. Rxd5 {[%clk 0:02:15]}  Rxd5 {[%clk 0:00:18]} 26. Qxd5 {[%clk 0:02:16]}  Qa8 {[%clk 0:00:19]} 27. Rd1 {[%clk 0:02:13]}  Qxa2 {[%clk 0:00:15]} 28. Qc6 {[%clk 0:02:08]}  Qa8 {[%clk 0:00:13]} 29. Rd6 {[%clk 0:02:04]}  Qxc6+ {[%clk 0:00:11]} 30. Rxc6 {[%clk 0:02:05]}  Re6 {[%clk 0:00:11]} 31. Rc7 {[%clk 0:02:02]}  g6 {[%clk 0:00:10]} 32. h3 {[%clk 0:01:59]}  h5 {[%clk 0:00:10]} 33. Rb7 {[%clk 0:01:59]}  Kg7 {[%clk 0:00:10]} 34. Kf3 {[%clk 0:01:59]}  Kf6 {[%clk 0:00:10]} 35. h4 {[%clk 0:01:59]}  Kg7 {[%clk 0:00:02]} 36. Kf4 {[%clk 0:01:56]}  Kf6 {[%clk 0:00:03]} 37. f3 {[%clk 0:01:51]}  Rd6 {[%clk 0:00:03]} 38. Ke3 {[%clk 0:01:41]}  Ke6 {[%clk 0:00:03]} 39. g4 {[%clk 0:01:38]}  Kf6 {[%clk 0:00:02]} 40. Rc7 {[%clk 0:01:30]}  Ke6 {[%clk 0:00:02]} 41. Kf4 {[%clk 0:01:27]}  Kf6 {[%clk 0:00:02]} 42. Rb7 {[%clk 0:01:27]}  Rd4+ {[%clk 0:00:02]} 43. Ke3 {[%clk 0:01:23]}  Rb4 {[%clk 0:00:03]} 44. Kf2 {[%clk 0:01:11]}  hxg4 {[%clk 0:00:03]} 45. fxg4 {[%clk 0:01:12]}  Rxb3 {[%clk 0:00:03]} 46. Rc7 {[%clk 0:01:09]}  Rb4 {[%clk 0:00:03]} 47. Kg3 {[%clk 0:01:09]}  Rb3+ {[%clk 0:00:04]} 48. Kf4 {[%clk 0:01:09]}  Rb4+ {[%clk 0:00:04]} 49. Kf3 {[%clk 0:01:09]}  Kg7 {[%clk 0:00:05]} 50. Rc6 {[%clk 0:01:07]}  c4 {[%clk 0:00:04]} 51. h5 {[%clk 0:01:07]}  gxh5 {[%clk 0:00:03]} 52. gxh5 {[%clk 0:01:08]}  b5 {[%clk 0:00:04]} 53. Kg4 {[%clk 0:01:07]}  Rb1 {[%clk 0:00:03]} 54. Kf5 {[%clk 0:01:02]}  Rf1+ {[%clk 0:00:03]} 55. Ke4 {[%clk 0:01:02]}  Rf6 {[%clk 0:00:02]} 56. Rc5 {[%clk 0:01:02]}  Rb6 {[%clk 0:00:02]} 57. Kd4 {[%clk 0:01:02]}  Kh6 {[%clk 0:00:02]} 58. Kc3 {[%clk 0:01:02]}  b4+ {[%clk 0:00:02]} 59. Kc2 {[%clk 0:00:59]}  c3 {[%clk 0:00:02]} 60. Kb3 {[%clk 0:00:58]}  Kg7 {[%clk 0:00:02]} 61. Rg5+ {[%clk 0:00:55]}  Kh6 {[%clk 0:00:02]} 62. Rc5 {[%clk 0:00:56]}  Rb8 {[%clk 0:00:02]} 63. Rc7 {[%clk 0:00:55]}  f5 {[%clk 0:00:01]} 64. Rc5 {[%clk 0:00:55]}  Kg5 {[%clk 0:00:02]} 65. h6 {[%clk 0:00:55]}  Kg6 {[%clk 0:00:02]} 66. h7 {[%clk 0:00:55]}  Rh8 {[%clk 0:00:02]} 67. Rc6+ {[%clk 0:00:55]}  Kg5 {[%clk 0:00:02]} 68. Rc7 {[%clk 0:00:55]}  Rxh7 {[%clk 0:00:02]} 69. Rxh7 {[%clk 0:00:54]}  f4 {[%clk 0:00:03]} 70. Rg7+ {[%clk 0:00:52]}  Kh4 {[%clk 0:00:03]} 71. Kxb4 {[%clk 0:00:51]}  f3 {[%clk 0:00:03]} 72. Kxc3 {[%clk 0:00:49]}  f2 {[%clk 0:00:03]} 73. Rf7 {[%clk 0:00:50]}  Kg3 {[%clk 0:00:04]} 74. Kd2 {[%clk 0:00:50]}  Kg2 {[%clk 0:00:04]} 75. Ke2 {[%clk 0:00:51]} 1-0


[Site "https://www.chess.com"]

[Event "Titled Tuesday Blitz October 31 Early 2023"]
[White "ChessRespected"]
[Black "Sokolovsky, Yahli"]
[BlackFideId "2820242"]
[WhiteElo "2539"]
[BlackElo "2770"]
[Result "0-1"]
[Round "2"]
[TimeControl "180+1"]
[Date "2023.10.31"]
[WhiteClock "0:00:00"]
[BlackClock "0:00:08"]
[Board "54"]

1. d4 {[%clk 0:03:00]}  d6 {[%clk 0:02:59]} 2. e4 {[%clk 0:03:00]}  g6 {[%clk 0:02:59]} 3. Nc3 {[%clk 0:02:59]}  Bg7 {[%clk 0:02:59]} 4. f4 {[%clk 0:02:56]}  Nf6 {[%clk 0:02:56]} 5. Nf3 {[%clk 0:02:51]}  O-O {[%clk 0:02:56]} 6. Bd3 {[%clk 0:02:47]}  c5 {[%clk 0:02:55]} 7. d5 {[%clk 0:02:42]}  e6 {[%clk 0:02:54]} 8. dxe6 {[%clk 0:02:38]}  fxe6 {[%clk 0:02:45]} 9. O-O {[%clk 0:02:30]}  Nc6 {[%clk 0:02:46]} 10. Kh1 {[%clk 0:02:25]}  e5 {[%clk 0:02:25]} 11. Bc4+ {[%clk 0:02:12]}  Kh8 {[%clk 0:02:25]} 12. Ng5 {[%clk 0:02:12]}  Qe7 {[%clk 0:02:22]} 13. Nd5 {[%clk 0:01:57]}  Nxd5 {[%clk 0:02:20]} 14. exd5 {[%clk 0:01:58]}  exf4 {[%clk 0:01:42]} 15. Rxf4 {[%clk 0:01:43]}  Ne5 {[%clk 0:01:37]} 16. Be2 {[%clk 0:01:27]}  Bf5 {[%clk 0:00:57]} 17. Rf1 {[%clk 0:00:59]}  h6 {[%clk 0:00:43]} 18. Nf3 {[%clk 0:00:58]}  Rae8 {[%clk 0:00:32]} 19. Bb5 {[%clk 0:00:52]}  Bd7 {[%clk 0:00:30]} 20. Nxe5 {[%clk 0:00:50]}  Rxf1+ {[%clk 0:00:21]} 21. Qxf1 {[%clk 0:00:51]}  dxe5 {[%clk 0:00:21]} 22. Bxd7 {[%clk 0:00:46]}  Qxd7 {[%clk 0:00:22]} 23. c4 {[%clk 0:00:42]}  Rf8 {[%clk 0:00:15]} 24. Qd3 {[%clk 0:00:36]}  Qf5 {[%clk 0:00:13]} 25. Qxf5 {[%clk 0:00:36]}  gxf5 {[%clk 0:00:14]} 26. Be3 {[%clk 0:00:33]}  b6 {[%clk 0:00:14]} 27. g3 {[%clk 0:00:31]}  Kh7 {[%clk 0:00:10]} 28. Rd1 {[%clk 0:00:31]}  f4 {[%clk 0:00:09]} 29. gxf4 {[%clk 0:00:29]}  exf4 {[%clk 0:00:09]} 30. Bf2 {[%clk 0:00:29]}  Bxb2 {[%clk 0:00:09]} 31. d6 {[%clk 0:00:27]}  Bf6 {[%clk 0:00:10]} 32. d7 {[%clk 0:00:27]}  Rd8 {[%clk 0:00:11]} 33. Kg2 {[%clk 0:00:23]}  Kg6 {[%clk 0:00:10]} 34. Kf3 {[%clk 0:00:24]}  Kf5 {[%clk 0:00:10]} 35. Rd5+ {[%clk 0:00:24]}  Ke6 {[%clk 0:00:10]} 36. Rh5 {[%clk 0:00:18]}  Bg7 {[%clk 0:00:07]} 37. Kxf4 {[%clk 0:00:10]}  Rxd7 {[%clk 0:00:07]} 38. Ke4 {[%clk 0:00:10]}  Rd2 {[%clk 0:00:07]} 39. Be3 {[%clk 0:00:10]}  Re2 {[%clk 0:00:07]} 40. Kf3 {[%clk 0:00:09]}  Rxa2 {[%clk 0:00:07]} 41. Bxh6 {[%clk 0:00:09]}  Bxh6 {[%clk 0:00:08]} 42. Rxh6+ {[%clk 0:00:10]}  Kf5 {[%clk 0:00:09]} 43. Rh5+ {[%clk 0:00:08]}  Kg6 {[%clk 0:00:10]} 44. Rd5 {[%clk 0:00:09]}  Rxh2 {[%clk 0:00:08]} 45. Rd6+ {[%clk 0:00:09]}  Kf5 {[%clk 0:00:08]} 46. Rd7 {[%clk 0:00:07]}  Rh3+ {[%clk 0:00:08]} 47. Ke2 {[%clk 0:00:05]}  Ra3 {[%clk 0:00:09]} 48. Kd2 {[%clk 0:00:05]}  Ke6 {[%clk 0:00:10]} 49. Rd8 {[%clk 0:00:00]}  Rg3 {[%clk 0:00:08]} 0-1


[Site "https://www.chess.com"]

[Event "Titled Tuesday Blitz October 31 Early 2023"]
[White "Costachi, Mihnea"]
[Black "Skatchkov, Valery"]
[WhiteFideId "1217518"]
[BlackFideId "24195812"]
[WhiteElo "2765"]
[BlackElo "2532"]
[Result "0-1"]
[Round "2"]
[TimeControl "180+1"]
[Date "2023.10.31"]
[WhiteClock "0:00:42"]
[BlackClock "0:00:46"]
[Board "56"]

1. Nc3 {[%clk 0:02:35]}  e5 {[%clk 0:02:59]} 2. e4 {[%clk 0:02:33]}  Nf6 {[%clk 0:02:59]} 3. Bc4 {[%clk 0:02:33]}  Nxe4 {[%clk 0:02:57]} 4. Qh5 {[%clk 0:02:33]}  Nd6 {[%clk 0:02:58]} 5. Bb3 {[%clk 0:02:26]}  Be7 {[%clk 0:02:57]} 6. Qxe5 {[%clk 0:02:18]}  O-O {[%clk 0:02:57]} 7. Nge2 {[%clk 0:02:18]}  Re8 {[%clk 0:02:57]} 8. O-O {[%clk 0:02:18]}  Nc6 {[%clk 0:02:53]} 9. Qd5 {[%clk 0:02:15]}  Bf6 {[%clk 0:02:42]} 10. d3 {[%clk 0:02:12]}  Nb4 {[%clk 0:02:37]} 11. Qf3 {[%clk 0:02:12]}  c6 {[%clk 0:02:37]} 12. a3 {[%clk 0:02:12]}  Na6 {[%clk 0:02:37]} 13. Bf4 {[%clk 0:02:10]}  Be5 {[%clk 0:02:30]} 14. Bxe5 {[%clk 0:02:03]}  Rxe5 {[%clk 0:02:31]} 15. Qg3 {[%clk 0:01:58]}  Qf6 {[%clk 0:02:27]} 16. Rae1 {[%clk 0:01:42]}  Nf5 {[%clk 0:02:14]} 17. Qf4 {[%clk 0:01:36]}  d6 {[%clk 0:02:01]} 18. Ne4 {[%clk 0:01:29]}  Qe7 {[%clk 0:02:00]} 19. N2g3 {[%clk 0:01:26]}  Nc5 {[%clk 0:01:38]} 20. Ba2 {[%clk 0:01:07]}  Nxe4 {[%clk 0:01:27]} 21. Rxe4 {[%clk 0:01:04]}  Nxg3 {[%clk 0:01:26]} 22. Rxe5 {[%clk 0:00:58]}  dxe5 {[%clk 0:01:26]} 23. Qxg3 {[%clk 0:00:58]}  Bf5 {[%clk 0:01:22]} 24. Re1 {[%clk 0:00:57]}  Re8 {[%clk 0:01:16]} 25. Qe3 {[%clk 0:00:57]}  b6 {[%clk 0:01:08]} 26. f4 {[%clk 0:00:58]}  e4 {[%clk 0:00:53]} 27. dxe4 {[%clk 0:00:58]}  Qxe4 {[%clk 0:00:53]} 28. Qxe4 {[%clk 0:00:57]}  Rxe4 {[%clk 0:00:54]} 29. Rxe4 {[%clk 0:00:57]}  Bxe4 {[%clk 0:00:54]} 30. c3 {[%clk 0:00:58]}  Kf8 {[%clk 0:00:54]} 31. g3 {[%clk 0:00:58]}  Ke7 {[%clk 0:00:54]} 32. Kf2 {[%clk 0:00:59]}  f6 {[%clk 0:00:55]} 33. Ke3 {[%clk 0:00:59]}  Bf5 {[%clk 0:00:54]} 34. b4 {[%clk 0:00:58]}  Kd6 {[%clk 0:00:54]} 35. Bf7 {[%clk 0:00:56]}  Bg4 {[%clk 0:00:49]} 36. Kd4 {[%clk 0:00:54]}  a5 {[%clk 0:00:49]} 37. bxa5 {[%clk 0:00:53]}  bxa5 {[%clk 0:00:50]} 38. Kc4 {[%clk 0:00:52]}  Be2+ {[%clk 0:00:47]} 39. Kd4 {[%clk 0:00:52]}  h6 {[%clk 0:00:45]} 40. Bc4 {[%clk 0:00:49]}  c5+ {[%clk 0:00:44]} 41. Ke4 {[%clk 0:00:44]}  Bxc4 {[%clk 0:00:45]} 42. Kf5 {[%clk 0:00:45]}  Bd3+ {[%clk 0:00:45]} 43. Kg4 {[%clk 0:00:42]}  Kd5 {[%clk 0:00:46]} 0-1


[Site "https://www.chess.com"]

[Event "Titled Tuesday Blitz October 31 Early 2023"]
[White "Srihari L R"]
[Black "sjoerd893"]
[WhiteFideId "46617116"]
[WhiteElo "2742"]
[BlackElo "2530"]
[Result "1-0"]
[Round "2"]
[TimeControl "180+1"]
[Date "2023.10.31"]
[WhiteClock "0:01:42"]
[BlackClock "0:00:00"]
[Board "59"]

1. c4 {[%clk 0:03:00]}  e5 {[%clk 0:02:58]} 2. Nc3 {[%clk 0:02:59]}  Nf6 {[%clk 0:02:57]} 3. Nf3 {[%clk 0:02:59]}  Nc6 {[%clk 0:02:51]} 4. d3 {[%clk 0:02:58]}  d5 {[%clk 0:02:50]} 5. cxd5 {[%clk 0:02:57]}  Nxd5 {[%clk 0:02:51]} 6. e3 {[%clk 0:02:57]}  Be6 {[%clk 0:02:45]} 7. Be2 {[%clk 0:02:56]}  Be7 {[%clk 0:02:44]} 8. O-O {[%clk 0:02:55]}  O-O {[%clk 0:02:44]} 9. a3 {[%clk 0:02:55]}  Qd7 {[%clk 0:02:39]} 10. Bd2 {[%clk 0:02:55]}  Rfd8 {[%clk 0:02:38]} 11. Qc2 {[%clk 0:02:54]}  a6 {[%clk 0:02:36]} 12. Ne4 {[%clk 0:02:52]}  f6 {[%clk 0:02:31]} 13. Nc5 {[%clk 0:02:51]}  Bxc5 {[%clk 0:02:31]} 14. Qxc5 {[%clk 0:02:52]}  Nce7 {[%clk 0:02:22]} 15. Rac1 {[%clk 0:02:44]}  b6 {[%clk 0:02:18]} 16. Qc2 {[%clk 0:02:41]}  c5 {[%clk 0:01:58]} 17. b4 {[%clk 0:02:38]}  cxb4 {[%clk 0:01:54]} 18. axb4 {[%clk 0:02:38]}  a5 {[%clk 0:01:48]} 19. bxa5 {[%clk 0:02:38]}  bxa5 {[%clk 0:01:49]} 20. d4 {[%clk 0:02:38]}  exd4 {[%clk 0:01:08]} 21. Nxd4 {[%clk 0:02:37]}  Bf7 {[%clk 0:01:09]} 22. Bb5 {[%clk 0:02:31]}  Qb7 {[%clk 0:01:04]} 23. Rb1 {[%clk 0:02:19]}  Qa7 {[%clk 0:00:55]} 24. Ra1 {[%clk 0:02:08]}  Qb6 {[%clk 0:00:37]} 25. Rfb1 {[%clk 0:02:07]}  Nb4 {[%clk 0:00:36]} 26. Bxb4 {[%clk 0:02:04]}  axb4 {[%clk 0:00:36]} 27. Rxa8 {[%clk 0:02:04]}  Rxa8 {[%clk 0:00:37]} 28. Rxb4 {[%clk 0:02:04]}  Ra2 {[%clk 0:00:13]} 29. Qxa2 {[%clk 0:01:57]}  Bxa2 {[%clk 0:00:11]} 30. Bc4+ {[%clk 0:01:58]}  Bxc4 {[%clk 0:00:12]} 31. Rxb6 {[%clk 0:01:58]}  Kf7 {[%clk 0:00:12]} 32. g4 {[%clk 0:01:58]}  h6 {[%clk 0:00:12]} 33. Rb7 {[%clk 0:01:56]}  Bd5 {[%clk 0:00:12]} 34. Ra7 {[%clk 0:01:55]}  Kf8 {[%clk 0:00:12]} 35. h3 {[%clk 0:01:54]}  Nc6 {[%clk 0:00:05]} 36. Nxc6 {[%clk 0:01:53]}  Bxc6 {[%clk 0:00:06]} 37. Kh2 {[%clk 0:01:53]}  Be4 {[%clk 0:00:06]} 38. Kg3 {[%clk 0:01:53]}  Kg8 {[%clk 0:00:07]} 39. Kf4 {[%clk 0:01:53]}  Bg2 {[%clk 0:00:07]} 40. h4 {[%clk 0:01:54]}  Bd5 {[%clk 0:00:06]} 41. g5 {[%clk 0:01:54]}  Be6 {[%clk 0:00:06]} 42. gxf6 {[%clk 0:01:50]}  gxf6 {[%clk 0:00:07]} 43. Ke4 {[%clk 0:01:49]}  Kf8 {[%clk 0:00:06]} 44. Kd4 {[%clk 0:01:49]}  Kg8 {[%clk 0:00:06]} 45. e4 {[%clk 0:01:48]}  Bf7 {[%clk 0:00:06]} 46. f4 {[%clk 0:01:47]}  Kg7 {[%clk 0:00:06]} 47. e5 {[%clk 0:01:45]}  fxe5+ {[%clk 0:00:06]} 48. fxe5 {[%clk 0:01:44]}  Kg6 {[%clk 0:00:06]} 49. Kc5 {[%clk 0:01:44]}  Be6 {[%clk 0:00:04]} 50. Kd6 {[%clk 0:01:44]}  Bf5 {[%clk 0:00:02]} 51. e6 {[%clk 0:01:44]}  Kh5 {[%clk 0:00:03]} 52. e7 {[%clk 0:01:43]}  Bg6 {[%clk 0:00:03]} 53. Ra8 {[%clk 0:01:41]}  Kxh4 {[%clk 0:00:03]} 54. Rg8 {[%clk 0:01:41]}  Bf7 {[%clk 0:00:02]} 55. Rf8 {[%clk 0:01:42]}  Bg6 {[%clk 0:00:02]} 56. Rf6 {[%clk 0:01:42]}  Kg5 {[%clk 0:00:00]} 57. Rxg6+ {[%clk 0:01:42]} 1-0


[Site "https://www.chess.com"]

[Event "Titled Tuesday Blitz October 31 Early 2023"]
[White "Rosenberg, Evan S"]
[Black "Danielyan, Vahe"]
[WhiteFideId "2019299"]
[BlackFideId "13304828"]
[WhiteElo "2470"]
[BlackElo "2731"]
[Result "1/2-1/2"]
[Round "2"]
[TimeControl "180+1"]
[Date "2023.10.31"]
[WhiteClock "0:00:29"]
[BlackClock "0:00:04"]
[Board "65"]

1. d4 {[%clk 0:03:00]}  Nf6 {[%clk 0:02:59]} 2. Nf3 {[%clk 0:03:01]}  e6 {[%clk 0:02:58]} 3. g3 {[%clk 0:02:59]}  d5 {[%clk 0:02:57]} 4. Bg2 {[%clk 0:02:59]}  c5 {[%clk 0:02:57]} 5. O-O {[%clk 0:03:00]}  cxd4 {[%clk 0:02:57]} 6. Nxd4 {[%clk 0:03:00]}  e5 {[%clk 0:02:58]} 7. Nb3 {[%clk 0:02:59]}  Nc6 {[%clk 0:02:58]} 8. Bg5 {[%clk 0:02:54]}  Be6 {[%clk 0:02:57]} 9. Nc3 {[%clk 0:02:54]}  d4 {[%clk 0:02:56]} 10. Ne4 {[%clk 0:02:53]}  Be7 {[%clk 0:02:57]} 11. Bxf6 {[%clk 0:02:51]}  gxf6 {[%clk 0:02:58]} 12. c3 {[%clk 0:02:48]}  f5 {[%clk 0:02:43]} 13. Nec5 {[%clk 0:02:44]}  dxc3 {[%clk 0:02:43]} 14. bxc3 {[%clk 0:02:42]}  Qb6 {[%clk 0:02:38]} 15. Nxe6 {[%clk 0:02:38]}  fxe6 {[%clk 0:02:39]} 16. e3 {[%clk 0:02:37]}  h5 {[%clk 0:02:32]} 17. Rb1 {[%clk 0:02:33]}  Qc7 {[%clk 0:02:27]} 18. h4 {[%clk 0:02:28]}  Kf7 {[%clk 0:02:15]} 19. Bf3 {[%clk 0:02:27]}  Rag8 {[%clk 0:02:12]} 20. Bxh5+ {[%clk 0:02:25]}  Kf8 {[%clk 0:02:12]} 21. Kh1 {[%clk 0:02:19]}  Rg7 {[%clk 0:01:36]} 22. e4 {[%clk 0:01:05]}  f4 {[%clk 0:01:25]} 23. g4 {[%clk 0:01:01]}  Bxh4 {[%clk 0:01:19]} 24. Nc5 {[%clk 0:01:01]}  Qe7 {[%clk 0:01:01]} 25. Rxb7 {[%clk 0:00:49]}  Qxc5 {[%clk 0:01:00]} 26. Rxg7 {[%clk 0:00:38]}  Kxg7 {[%clk 0:01:01]} 27. Qd7+ {[%clk 0:00:37]}  Ne7 {[%clk 0:00:28]} 28. Qxe6 {[%clk 0:00:37]}  Rf8 {[%clk 0:00:24]} 29. g5 {[%clk 0:00:30]}  f3 {[%clk 0:00:02]} 30. Qh6+ {[%clk 0:00:28]}  Kg8 {[%clk 0:00:03]} 31. Qe6+ {[%clk 0:00:28]}  Kg7 {[%clk 0:00:02]} 32. Qh6+ {[%clk 0:00:28]}  Kg8 {[%clk 0:00:03]} 33. Qe6+ {[%clk 0:00:29]}  Kg7 {[%clk 0:00:04]} 1/2-1/2


[Site "https://www.chess.com"]

[Event "Titled Tuesday Blitz October 31 Early 2023"]
[White "Fier, Alexandr"]
[Black "Maris, Ivo"]
[WhiteFideId "2107139"]
[BlackFideId "1028146"]
[WhiteElo "2729"]
[BlackElo "2469"]
[Result "1-0"]
[Round "2"]
[TimeControl "180+1"]
[Date "2023.10.31"]
[WhiteClock "0:01:32"]
[BlackClock "0:01:27"]
[Board "67"]

1. e4 {[%clk 0:03:00]}  g6 {[%clk 0:03:00]} 2. d4 {[%clk 0:02:59]}  Bg7 {[%clk 0:03:00]} 3. h4 {[%clk 0:02:59]}  h6 {[%clk 0:03:00]} 4. h5 {[%clk 0:02:58]}  g5 {[%clk 0:03:00]} 5. f4 {[%clk 0:02:59]}  gxf4 {[%clk 0:03:01]} 6. Bxf4 {[%clk 0:02:59]}  d6 {[%clk 0:03:01]} 7. Nf3 {[%clk 0:02:59]}  a6 {[%clk 0:03:00]} 8. c3 {[%clk 0:02:59]}  Nd7 {[%clk 0:03:00]} 9. Bc4 {[%clk 0:02:58]}  e6 {[%clk 0:03:00]} 10. O-O {[%clk 0:02:58]}  Ngf6 {[%clk 0:02:57]} 11. e5 {[%clk 0:02:54]}  Nxh5 {[%clk 0:02:56]} 12. Bh2 {[%clk 0:02:50]}  dxe5 {[%clk 0:02:54]} 13. Nxe5 {[%clk 0:02:50]}  Nxe5 {[%clk 0:02:54]} 14. Qxh5 {[%clk 0:02:49]}  Ng6 {[%clk 0:02:54]} 15. Nd2 {[%clk 0:02:45]}  Qg5 {[%clk 0:02:46]} 16. Qxg5 {[%clk 0:02:42]}  hxg5 {[%clk 0:02:47]} 17. Bxc7 {[%clk 0:02:41]}  b5 {[%clk 0:02:47]} 18. Bd3 {[%clk 0:02:40]}  Bb7 {[%clk 0:02:47]} 19. Bxg6 {[%clk 0:02:38]}  fxg6 {[%clk 0:02:48]} 20. Rae1 {[%clk 0:02:38]}  Ke7 {[%clk 0:02:40]} 21. Be5 {[%clk 0:02:35]}  Bxe5 {[%clk 0:02:30]} 22. Rxe5 {[%clk 0:02:34]}  Rh5 {[%clk 0:02:27]} 23. Rfe1 {[%clk 0:02:30]}  Rah8 {[%clk 0:02:27]} 24. Rxe6+ {[%clk 0:02:30]}  Kd8 {[%clk 0:02:28]} 25. Rxg6 {[%clk 0:02:22]}  a5 {[%clk 0:02:16]} 26. Re5 {[%clk 0:02:17]}  b4 {[%clk 0:02:09]} 27. Rexg5 {[%clk 0:02:08]}  Rh1+ {[%clk 0:02:09]} 28. Kf2 {[%clk 0:02:09]}  Rf8+ {[%clk 0:02:10]} 29. Kg3 {[%clk 0:02:07]}  Ra1 {[%clk 0:02:04]} 30. Rxa5 {[%clk 0:02:05]}  Rc1 {[%clk 0:02:00]} 31. cxb4 {[%clk 0:02:01]}  Re1 {[%clk 0:02:00]} 32. Nf3 {[%clk 0:02:00]}  Re2 {[%clk 0:01:59]} 33. d5 {[%clk 0:01:57]}  Rxb2 {[%clk 0:01:59]} 34. a3 {[%clk 0:01:58]}  Re2 {[%clk 0:01:55]} 35. Nd4 {[%clk 0:01:55]}  Re3+ {[%clk 0:01:53]} 36. Kh2 {[%clk 0:01:54]}  Rh8+ {[%clk 0:01:51]} 37. Kg1 {[%clk 0:01:55]}  Rd3 {[%clk 0:01:50]} 38. Ne6+ {[%clk 0:01:55]}  Kc8 {[%clk 0:01:50]} 39. Nf4 {[%clk 0:01:36]}  Rd1+ {[%clk 0:01:48]} 40. Kf2 {[%clk 0:01:36]}  Rf8 {[%clk 0:01:48]} 41. g3 {[%clk 0:01:36]}  Bxd5 {[%clk 0:01:46]} 42. Rd6 {[%clk 0:01:33]}  Rd2+ {[%clk 0:01:27]} 43. Ke3 {[%clk 0:01:32]} 1-0


[Site "https://www.chess.com"]

[Event "Titled Tuesday Blitz October 31 Early 2023"]
[White "Csonka, Balazs"]
[Black "McBryde, Lamel"]
[WhiteFideId "742910"]
[BlackFideId "2058596"]
[WhiteElo "2726"]
[BlackElo "2423"]
[Result "1-0"]
[Round "2"]
[TimeControl "180+1"]
[Date "2023.10.31"]
[WhiteClock "0:00:09"]
[BlackClock "0:00:17"]
[Board "70"]

1. d4 {[%clk 0:03:00]}  Nf6 {[%clk 0:03:00]} 2. c4 {[%clk 0:02:58]}  e6 {[%clk 0:02:59]} 3. Nf3 {[%clk 0:02:56]}  b6 {[%clk 0:02:58]} 4. a3 {[%clk 0:02:55]}  Bb7 {[%clk 0:02:57]} 5. Nc3 {[%clk 0:02:54]}  c5 {[%clk 0:02:54]} 6. d5 {[%clk 0:02:54]}  exd5 {[%clk 0:02:55]} 7. cxd5 {[%clk 0:02:55]}  d6 {[%clk 0:02:55]} 8. e4 {[%clk 0:02:54]}  Nbd7 {[%clk 0:02:55]} 9. Bd3 {[%clk 0:02:48]}  a6 {[%clk 0:02:54]} 10. a4 {[%clk 0:02:48]}  Be7 {[%clk 0:02:54]} 11. O-O {[%clk 0:02:47]}  O-O {[%clk 0:02:54]} 12. h3 {[%clk 0:02:44]}  Qc7 {[%clk 0:02:53]} 13. Nd2 {[%clk 0:02:33]}  Ne5 {[%clk 0:02:45]} 14. Be2 {[%clk 0:02:31]}  Ng6 {[%clk 0:02:45]} 15. f4 {[%clk 0:02:28]}  Rfe8 {[%clk 0:02:44]} 16. Nc4 {[%clk 0:02:12]}  Bf8 {[%clk 0:02:42]} 17. Bd3 {[%clk 0:02:06]}  Rab8 {[%clk 0:02:23]} 18. e5 {[%clk 0:01:45]}  dxe5 {[%clk 0:02:09]} 19. Bxg6 {[%clk 0:01:45]}  hxg6 {[%clk 0:02:09]} 20. fxe5 {[%clk 0:01:45]}  b5 {[%clk 0:01:29]} 21. axb5 {[%clk 0:01:31]}  axb5 {[%clk 0:01:30]} 22. exf6 {[%clk 0:01:26]}  bxc4 {[%clk 0:01:29]} 23. Bf4 {[%clk 0:01:27]}  Bd6 {[%clk 0:01:28]} 24. Nb5 {[%clk 0:01:26]}  Bxf4 {[%clk 0:01:27]} 25. Nxc7 {[%clk 0:01:25]}  Bxc7 {[%clk 0:01:27]} 26. d6 {[%clk 0:01:00]}  Bb6 {[%clk 0:01:13]} 27. d7 {[%clk 0:00:52]}  Red8 {[%clk 0:01:00]} 28. Qd6 {[%clk 0:00:51]}  Be4 {[%clk 0:00:53]} 29. fxg7 {[%clk 0:00:41]}  Bd3 {[%clk 0:00:41]} 30. Rfe1 {[%clk 0:00:13]}  c3 {[%clk 0:00:25]} 31. bxc3 {[%clk 0:00:09]}  c4+ {[%clk 0:00:26]} 32. Kh1 {[%clk 0:00:09]}  Bf2 {[%clk 0:00:25]} 33. Qxb8 {[%clk 0:00:09]}  Rxb8 {[%clk 0:00:22]} 34. Re8+ {[%clk 0:00:09]}  Kxg7 {[%clk 0:00:17]} 35. Rxb8 {[%clk 0:00:09]} 1-0


[Site "https://www.chess.com"]